fUSD/lending_fUSD_20260405
["ID","MTS","AMOUNT","RATE_DAILY","PERIOD"]
[419852012,1775419839610,-500.0,0.00013698,2]
[419852013,1775419839619,-500.0,0.00013698,2]
[419852014,1775419839629,-500.0,0.00013698,2]
[419852015,1775419839638,-500.0,0.00013698,2]
[419852016,1775419839648,-500.0,0.00013698,2]
[419852017,1775419839657,-500.0,0.00013698,2]
[419852018,1775419839667,-500.0,0.00013698,2]
[419852019,1775419839676,-500.0,0.00013698,2]
[419852020,1775419839687,-213.35,0.00013698,2]
[419852021,1775419839698,-500.0,0.00013698,2]
[419852022,1775419839708,-500.0,0.00013698,2]
[419852023,1775419839719,-500.0,0.00013698,2]
[419852024,1775419839729,-500.0,0.00013698,2]
[419852025,1775419839739,-500.0,0.00013698,2]
[419852026,1775419839749,-500.0,0.00013698,2]
[419852027,1775419839759,-500.0,0.00013698,2]
[419852028,1775419839769,-500.0,0.00013698,2]
[419852029,1775419839778,-500.0,0.00013698,2]
[419852030,1775419839787,-500.0,0.00013698,2]
[419852031,1775419839797,-500.0,0.00013698,2]
[419852032,1775419839806,-500.0,0.00013698,2]
[419852033,1775419839816,-500.0,0.00013698,2]
[419852034,1775419839825,-500.0,0.00013698,2]
[419852035,1775419839835,-500.0,0.00013698,2]
[419852036,1775419839845,-500.0,0.00013698,2]
[419852037,1775419839854,-500.0,0.00013698,2]
[419852038,1775419839865,-183.58723642,0.00013698,2]
[419852039,1775419839874,-1063.21,0.00013698,2]
[419852040,1775419839884,-1063.21,0.00013698,2]
[419852041,1775419839894,-1063.21,0.00013698,2]
[419852042,1775419839904,-1063.21,0.00013698,2]
[419852043,1775419839915,-1063.21,0.00013698,2]
[419852044,1775419839924,-1063.21,0.00013698,2]
[419852045,1775419839934,-1063.21,0.00013698,2]
[419852046,1775419839944,-1063.21,0.00013698,2]
[419852047,1775419839954,-846.58,0.00013698,2]
[419852048,1775419839963,-846.58,0.00013698,2]
[419852049,1775419839973,-846.58,0.00013698,2]
[419852050,1775419839982,-846.58,0.00013698,2]
[419852051,1775419839992,-846.58,0.00013698,2]
[419852052,1775419840001,-846.58,0.00013698,2]
[419852053,1775419840011,-846.58,0.00013698,2]
[419852054,1775419840020,-846.58,0.00013698,2]
[419852055,1775419840030,-846.58,0.00013698,2]
[419852056,1775419840039,-500.0,0.00013698,2]
[419852057,1775419840048,-500.0,0.00013698,2]
[419852058,1775419840057,-500.0,0.00013698,2]
[419852059,1775419840066,-500.0,0.00013698,2]
[419852060,1775419840075,-500.0,0.00013698,2]
[419852061,1775419840085,-500.0,0.00013698,2]
[419852062,1775419840094,-500.0,0.00013698,2]
[419852063,1775419840103,-500.0,0.00013698,2]
[419852064,1775419840112,-500.0,0.00013698,2]
[419852065,1775419840121,-504.35317897,0.00013698,2]
[419852066,1775419840131,-762.11,0.00013698,2]
[419852067,1775419840140,-762.11,0.00013698,2]
[419852068,1775419840149,-762.11,0.00013698,2]
[419852069,1775419840159,-762.11,0.00013698,2]
[419852070,1775419840168,-762.11,0.00013698,2]
[419852071,1775419840177,-762.11,0.00013698,2]
[419852072,1775419840186,-762.11,0.00013698,2]
[419852073,1775419840195,-762.11,0.00013698,2]
[419852074,1775419840204,-762.11,0.00013698,2]
[419852075,1775419840213,-620.62,0.00013698,2]
[419852076,1775419840222,-620.62,0.00013698,2]
[419852077,1775419840232,-620.62,0.00013698,2]
[419852078,1775419840241,-620.62,0.00013698,2]
[419852079,1775419840250,-620.62,0.00013698,2]
[419852080,1775419840259,-620.62,0.00013698,2]
[419852081,1775419840268,-620.62,0.00013698,2]
[419852082,1775419840277,-620.62,0.00013698,2]
[419852083,1775419840288,-826.88,0.00013698,2]
[419852084,1775419840298,-826.88,0.00013698,2]
[419852085,1775419840307,-826.88,0.00013698,2]
[419852086,1775419840316,-826.88,0.00013698,2]
[419852087,1775419840325,-826.88,0.00013698,2]
[419852088,1775419840335,-826.88,0.00013698,2]
[419852089,1775419840345,-826.88,0.00013698,2]
[419852090,1775419840355,-826.88,0.00013698,2]
[419852091,1775419840364,-500.0,0.00013698,2]
[419852092,1775419840373,-500.0,0.00013698,2]
[419852093,1775419840383,-500.0,0.00013698,2]
[419852094,1775419840393,-500.0,0.00013698,2]
[419852095,1775419840403,-500.0,0.00013698,2]
[419852096,1775419840413,-500.0,0.00013698,2]
[419852097,1775419840424,-500.0,0.00013698,2]
[419852098,1775419840434,-500.0,0.00013698,2]
[419852099,1775419840445,-500.0,0.00013698,2]
[419852100,1775419840455,-500.0,0.00013698,2]
[419852101,1775419840465,-500.0,0.00013698,2]
[419852102,1775419840476,-500.0,0.00013698,2]
[419852103,1775419840486,-500.0,0.00013698,2]
[419852104,1775419840495,-500.0,0.00013698,2]
[419852105,1775419840504,-500.0,0.00013698,2]
[419852106,1775419840514,-500.0,0.00013698,2]
[419852107,1775419840523,-646.16,0.00013698,2]
[419852108,1775419840532,-646.16,0.00013698,2]
[419852109,1775419840541,-646.16,0.00013698,2]
[419852110,1775419840550,-646.16,0.00013698,2]
[419852111,1775419840560,-646.16,0.00013698,2]
[419852112,1775419840569,-646.16,0.00013698,2]
[419852113,1775419840578,-646.16,0.00013698,2]
[419852114,1775419840587,-1115.58,0.00013698,2]
[419852115,1775419840596,-1115.58,0.00013698,2]
[419852116,1775419840605,-1115.58,0.00013698,2]
[419852117,1775419840615,-1115.58,0.00013698,2]
[419852118,1775419840623,-1115.58,0.00013698,2]
[419852119,1775419840632,-1115.58,0.00013698,2]
[419852120,1775419840642,-1115.58,0.00013698,2]
[419852121,1775419840651,-500.0,0.00013698,2]
[419852122,1775419840661,-500.0,0.00013698,2]
[419852123,1775419840670,-500.0,0.00013698,2]
[419852124,1775419840680,-500.0,0.00013698,2]
[419852125,1775419840689,-500.0,0.00013698,2]
[419852126,1775419840699,-500.0,0.00013698,2]
[419852127,1775419840708,-500.0,0.00013698,2]
[419852128,1775419840718,-500.0,0.00013698,2]
[419852129,1775419840727,-500.0,0.00013698,2]
[419852130,1775419840736,-500.0,0.00013698,2]
[419852131,1775419840746,-500.0,0.00013698,2]
[419852132,1775419840755,-500.0,0.00013698,2]
[419852133,1775419840764,-500.0,0.00013698,2]
[419852134,1775419840774,-481.06713155,0.00013698,2]
[419852135,1775419840783,-385.93623428,0.00013698,2]
[419852136,1775419840792,-500.0,0.00013698,2]
[419852137,1775419840802,-500.0,0.00013698,2]
[419852138,1775419840811,-500.0,0.00013698,2]
[419852139,1775419840820,-500.0,0.00013698,2]
[419852140,1775419840830,-500.0,0.00013698,2]
[419852141,1775419840839,-500.0,0.00013698,2]
[419852142,1775419840848,-500.0,0.00013698,2]
[419852143,1775419840858,-500.0,0.00013698,2]
[419852144,1775419840867,-500.0,0.00013698,2]
[419852145,1775419840876,-500.0,0.00013698,2]
[419852146,1775419840885,-500.0,0.00013698,2]
[419852147,1775419840894,-500.0,0.00013698,2]
[419852148,1775419840903,-500.0,0.00013698,2]
[419852149,1775419840913,-500.0,0.00013698,2]
[419852150,1775419840922,-500.0,0.00013698,2]
[419852151,1775419840931,-500.0,0.00013698,2]
[419852152,1775419840940,-500.0,0.00013698,2]
[419852153,1775419840949,-500.0,0.00013698,2]
[419852154,1775419840958,-500.0,0.00013698,2]
[419852155,1775419840967,-500.0,0.00013698,2]
[419852156,1775419840976,-500.0,0.00013698,2]
[419852157,1775419840985,-500.0,0.00013698,2]
[419852158,1775419840994,-500.0,0.00013698,2]
[419852159,1775419841003,-500.0,0.00013698,2]
[419852160,1775419841012,-500.0,0.00013698,2]
[419852161,1775419841021,-500.0,0.00013698,2]
[419852162,1775419841030,-500.0,0.00013698,2]
[419852163,1775419841039,-500.0,0.00013698,2]
[419852164,1775419841048,-500.0,0.00013698,2]
[419852165,1775419841057,-500.0,0.00013698,2]
[419852166,1775419841066,-500.0,0.00013698,2]
[419852167,1775419841075,-500.0,0.00013698,2]
[419852168,1775419841084,-500.0,0.00013698,2]
[419852169,1775419841093,-500.0,0.00013698,2]
[419852170,1775419841102,-500.0,0.00013698,2]
[419852171,1775419841111,-500.0,0.00013698,2]
[419852172,1775419841120,-500.0,0.00013698,2]
[419852174,1775419841130,-500.0,0.00013698,2]
[419852175,1775419841140,-500.0,0.00013698,2]
[419852176,1775419841149,-500.0,0.00013698,2]
[419852177,1775419841158,-683.63,0.00013698,2]
[419852178,1775419841167,-683.63,0.00013698,2]
[419852179,1775419841176,-683.63,0.00013698,2]
[419852180,1775419841186,-683.63,0.00013698,2]
[419852181,1775419841195,-683.63,0.00013698,2]
[419852182,1775419841204,-683.63,0.00013698,2]
[419852183,1775419841213,-683.63,0.00013698,2]
[419852184,1775419841222,-815.51,0.00013698,2]
[419852185,1775419841232,-815.51,0.00013698,2]
[419852186,1775419841242,-815.51,0.00013698,2]
[419852187,1775419841252,-815.51,0.00013698,2]
[419852188,1775419841263,-815.51,0.00013698,2]
[419852189,1775419841271,-815.51,0.00013698,2]
[419852190,1775419841281,-815.51,0.00013698,2]
[419852191,1775419841290,-500.0,0.00013698,2]
[419852192,1775419841299,-500.0,0.00013698,2]
[419852193,1775419841308,-500.0,0.00013698,2]
[419852194,1775419841318,-500.0,0.00013698,2]
[419852195,1775419841327,-500.0,0.00013698,2]
[419852196,1775419841336,-500.0,0.00013698,2]
[419852197,1775419841345,-500.0,0.00013698,2]
[419852198,1775419841355,-551.83212521,0.00013698,2]
[419852199,1775419841365,-500.0,0.00013698,2]
[419852200,1775419841376,-500.0,0.00013698,2]
[419852201,1775419841387,-500.0,0.00013698,2]
[419852202,1775419841398,-500.0,0.00013698,2]
[419852203,1775419841407,-500.0,0.00013698,2]
[419852204,1775419841419,-500.0,0.00013698,2]
[419852205,1775419841430,-500.0,0.00013698,2]
[419852206,1775419841439,-500.0,0.00013698,2]
[419852207,1775419841450,-500.0,0.00013698,2]
[419852208,1775419841460,-500.0,0.00013698,2]
[419852209,1775419841471,-500.0,0.00013698,2]
[419852210,1775419841481,-500.0,0.00013698,2]
[419852211,1775419841490,-500.0,0.00013698,2]
[419852212,1775419841499,-500.0,0.00013698,2]
[419852213,1775419841509,-150.0,0.00013699,2]
[419852214,1775419841518,-150.0,0.00013699,2]
[419852215,1775419841528,-150.0,0.00013699,2]
[419852216,1775419841538,-150.0,0.00013699,2]
[419852217,1775419841547,-150.0,0.00013699,2]
[419852218,1775419841556,-150.0,0.00013699,2]
[419852219,1775419841899,-150.0,0.00013699,2]
[419852220,1775419841930,-150.0,0.00013699,2]
[419852221,1775419841940,-476.08,0.00013699,2]
[419852222,1775419841949,-476.08,0.00013699,2]
[419852223,1775419841958,-317.39,0.00013699,2]
[419852224,1775419841967,-264.49,0.00013699,2]
[419852225,1775419841976,-220.41,0.00013699,2]
[419852226,1775419841985,-183.67,0.00013699,2]
[419852227,1775419841994,-153.06,0.00013699,2]
[419852228,1775419842003,-765.32,0.00013699,2]
[419852229,1775419842012,-200.0,0.00013699,2]
[419852230,1775419842021,-152.37,0.00013699,2]
[419852231,1775419842030,-162.49,0.000137,2]
[419852232,1775419842039,-175.25452362,0.00013778,7]
[419852233,1775419842048,-150.0,0.000138,2]
[419852234,1775419842057,-1115.0,0.0001382,2]
[419852235,1775419842067,-31782.0,0.00013864,2]
[419852236,1775419842076,-500.0,0.00013899,2]
[419852237,1775419842085,-1063.21,0.00013899,2]
[419852238,1775419842094,-500.0,0.00013899,2]
[419852239,1775419842103,-620.62,0.00013899,2]
[419852240,1775419842112,-826.88,0.00013899,2]
[419852241,1775419842121,-4734.22617623,0.00013927,2]
[419852242,1775419842130,-500.0,0.00013972,2]
[419852243,1775419842139,-150.0,0.00013973,2]
[419852244,1775419842148,-150.0,0.00013973,2]
[419852245,1775419842158,-150.0,0.00013973,2]
[419852246,1775419842167,-150.0,0.00013973,2]
[419852247,1775419842176,-150.0,0.00013973,2]
[419852248,1775419842186,-150.0,0.00013973,2]
[419852249,1775419842195,-1500.0,0.00014,2]
[419852250,1775419842204,-500.0,0.00014005,2]
[419852251,1775419842213,-60000.0,0.00014006,2]
[419852252,1775419842223,-155.19654635,0.00014007,2]
[419852253,1775419842232,-2000.0,0.00014032,2]
[419852254,1775419842241,-2000.0,0.00014032,2]
[419852255,1775419842250,-2000.0,0.00014032,2]
[419852256,1775419842259,-2000.0,0.00014032,2]
[419852257,1775419842269,-2000.0,0.00014032,2]
[419852258,1775419842278,-2000.0,0.00014032,2]
[419852259,1775419842287,-2000.0,0.00014032,2]
[419852260,1775419842296,-2000.0,0.00014032,2]
[419852261,1775419842306,-2000.0,0.00014032,2]
[419852262,1775419842315,-2000.0,0.00014032,2]
[419852263,1775419842324,-2000.0,0.00014032,2]
[419852264,1775419842335,-2000.0,0.00014032,2]
[419852265,1775419842344,-2000.0,0.00014032,2]
[419852266,1775419842354,-2000.0,0.00014032,2]
[419852267,1775419842363,-2000.0,0.00014032,2]
[419852268,1775419842372,-2000.0,0.00014032,2]
[419852269,1775419842381,-2000.0,0.00014032,2]
[419852270,1775419842390,-2000.0,0.00014032,2]
[419852271,1775419842399,-2000.0,0.00014032,2]
[419852272,1775419842408,-2125.0,0.00014032,2]
[419852273,1775419842417,-26594.05472143,0.00014064,2]
[419852274,1775419842426,-507.0,0.00014095,2]
[419852275,1775419842435,-500.0,0.0001411,2]
[419852276,1775419842444,-211.92,0.00014119,2]
[419852277,1775419842453,-500.0,0.00014119,2]
[419852278,1775419842462,-846.58,0.00014119,2]
[419852279,1775419842472,-762.11,0.00014119,2]
[419852280,1775419842481,-500.0,0.00014119,2]
[419852281,1775419842490,-160.0,0.00014214,2]
[419852282,1775419842499,-3361.361113,0.00014214,2]
[419852283,1775419842509,-6562.722226,0.00014214,2]
[419852284,1775419842518,-160.0,0.00014214,7]
[419852285,1775419842527,-6881.873002,0.00014214,7]
[419852286,1775419842536,-13603.746005,0.00014214,7]
[419852287,1775419842544,-160.0,0.00014214,2]
[419852288,1775419842554,-1862.179008,0.00014214,2]
[419852289,1775419842563,-3564.358017,0.00014214,2]
[419852290,1775419842572,-160.0,0.00014214,7]
[419852291,1775419842581,-1737.658767,0.00014214,7]
[419852292,1775419842590,-3315.317535,0.00014214,7]
[419852293,1775419842600,-717.06,0.00014243,2]
[419852294,1775419842610,-3240.0,0.00014243,2]
[419852295,1775419842619,-150.0,0.00014247,2]
[419852296,1775419842628,-150.0,0.00014247,2]
[419852297,1775419842637,-150.0,0.00014247,2]
[419852298,1775419842646,-150.0,0.00014247,2]
[419852300,1775419842656,-150.0,0.00014247,2]
[419852302,1775419842665,-150.0,0.00014247,2]
[419852304,1775419842674,-999.83756672,0.00014248,2]
[419852305,1775419842684,-3294.0,0.00014278,5]
[419852306,1775419842694,-2000.0,0.00014335,2]
[419852307,1775419842703,-152.92156999,0.00014346,2]
[419852308,1775419842712,-500.0,0.00014346,2]
[419852309,1775419842722,-1852.42,0.00014359,2]
[419852310,1775419842731,-500.0,0.00014365,2]
[419852311,1775419842741,-500.0,0.00014365,2]
[419852312,1775419842750,-500.0,0.00014365,2]
[419852313,1775419842759,-425.89784069,0.00014365,2]
[419852314,1775419842769,-633.93373005,0.00014365,2]
[419852315,1775419842779,-301.0885738,0.00014365,2]
[419852317,1775419842788,-2000.0,0.00014366,2]
[419852319,1775419842797,-2000.0,0.00014366,2]
[419852321,1775419842806,-2000.0,0.00014366,2]
[419852322,1775419842815,-2000.0,0.00014366,2]
[419852323,1775419842824,-2000.0,0.00014366,2]
[419852324,1775419842833,-2000.0,0.00014366,2]
[419852325,1775419842842,-2000.0,0.00014366,2]
[419852326,1775419842851,-2000.0,0.00014366,2]
[419852327,1775419842860,-2000.0,0.00014366,2]
[419852328,1775419842869,-2000.0,0.00014366,2]
[419852329,1775419842878,-2000.0,0.00014366,2]
[419852330,1775419842887,-1757.0,0.00014366,2]
[419852331,1775419842896,-10405.80591116,0.0001439,2]
[419852332,1775419842905,-150.0,0.000144,2]
[419852333,1775419842915,-150.0,0.000144,2]
[419852334,1775419842924,-150.0,0.000144,2]
[419852335,1775419842933,-150.0,0.000144,2]
[419852336,1775419842943,-150.0,0.000144,2]
[419852337,1775419842952,-150.0,0.000144,2]
[419852338,1775419842961,-150.0,0.000144,2]
[419852339,1775419842971,-150.0,0.000144,2]
[419852340,1775419842980,-150.0,0.000144,2]
[419852341,1775419842988,-150.0,0.000144,2]
[419852342,1775419842998,-150.0,0.000144,2]
[419852343,1775419843007,-150.0,0.000144,2]
[419852344,1775419843016,-150.0,0.000144,2]
[419852345,1775419843025,-150.0,0.000144,2]
[419852346,1775419843035,-150.0,0.00014419,2]
[419852347,1775419843044,-150.0,0.00014423,2]
[419852348,1775419843053,-150.0,0.00014424,2]
[419852349,1775419843062,-500.0,0.0001443,2]
[419852350,1775419843072,-646.16,0.0001443,2]
[419852351,1775419843081,-1115.58,0.0001443,2]
[419852352,1775419843091,-500.0,0.0001443,2]
[419852353,1775419843101,-500.0,0.0001443,2]
[419852354,1775419843110,-500.0,0.0001443,2]
[419852355,1775419843119,-500.0,0.0001443,2]
[419852356,1775419843129,-500.0,0.0001443,2]
[419852357,1775419843138,-500.0,0.0001443,2]
[419852358,1775419843147,-683.63,0.0001443,2]
[419852359,1775419843156,-815.51,0.0001443,2]
[419852360,1775419843166,-500.0,0.0001443,2]
[419852361,1775419843176,-500.0,0.0001443,2]
[419852362,1775419843185,-150.0,0.0001443,2]
[419852363,1775419843195,-150.0,0.00014431,2]
[419852364,1775419843205,-26594.05472143,0.00014431,2]
[419852365,1775419843215,-150.0,0.00014432,2]
[419852366,1775419843224,-150.0,0.00014438,2]
[419852367,1775419843233,-150.0,0.00014445,2]
[419852368,1775419843243,-150.0,0.00014448,2]
[419852369,1775419843252,-150.0,0.00014455,2]
[419852370,1775419843262,-150.0,0.00014456,2]
[419852371,1775419843271,-150.0,0.0001446,2]
[419852372,1775419843281,-150.0,0.00014462,2]
[419852373,1775419843290,-150.0,0.00014464,2]
[419852374,1775419843299,-150.0,0.00014468,2]
[419852375,1775419843309,-150.0,0.00014472,2]
[419852376,1775419843319,-150.0,0.00014473,2]
[419852377,1775419843328,-150.0,0.00014475,2]
[419852378,1775419843337,-150.0,0.0001449,2]
[419852379,1775419843346,-150.0,0.00014491,2]
[419852380,1775419843356,-150.0,0.00014492,2]
[419852381,1775419843365,-150.0,0.00014494,2]
[419852382,1775419843375,-150.0,0.00014496,2]
[419852383,1775419843384,-150.0,0.00014496,2]
[419852384,1775419843394,-150.0,0.000145,2]
[419852385,1775419843403,-500.0,0.00014503,2]
[419852386,1775419843412,-1063.21,0.00014503,2]
[419852387,1775419843422,-500.0,0.00014503,2]
[419852388,1775419843431,-620.62,0.00014503,2]
[419852389,1775419843440,-826.88,0.00014503,2]
[419852390,1775419843450,-150.99,0.00014504,2]
[419852391,1775419843459,-7124.75,0.00014504,2]
[419852392,1775419843468,-150.0,0.0001451,2]
[419852393,1775419843478,-150.0,0.00014513,2]
[419852394,1775419843486,-150.0,0.00014513,2]
[419852395,1775419843496,-150.0,0.00014519,2]
[419852396,1775419843506,-150.0,0.00014521,2]
[419852397,1775419843515,-150.0,0.00014523,2]
[419852398,1775419843525,-150.0,0.00014528,2]
[419852399,1775419843534,-150.0,0.00014532,2]
[419852400,1775419843544,-150.0,0.00014535,2]
[419852401,1775419843553,-150.0,0.00014543,2]
[419852402,1775419843563,-150.0,0.00014545,2]
[419852403,1775419843572,-1115.0,0.00014548,2]
[419852404,1775419843582,-150.0,0.00014551,2]
[419852405,1775419843591,-150.0,0.00014551,2]
[419852406,1775419843600,-150.0,0.00014554,2]
[419852407,1775419843609,-150.0,0.00014558,2]
[419852408,1775419843619,-150.0,0.0001456,2]
[419852409,1775419843629,-150.0,0.00014566,2]
[419852410,1775419843638,-150.0,0.00014567,2]
[419852411,1775419843648,-150.0,0.00014569,2]
[419852412,1775419843657,-150.0,0.0001458,2]
[419852413,1775419843667,-150.0,0.00014581,2]
[419852414,1775419843676,-150.0,0.00014585,2]
[419852415,1775419843685,-150.0,0.00014588,2]
[419852416,1775419843694,-150.0,0.00014591,2]
[419852417,1775419843704,-150.0,0.00014592,2]
[419852418,1775419843713,-150.0,0.000146,2]
[419852419,1775419843722,-150.0,0.00014603,2]
[419852420,1775419843731,-150.0,0.00014607,2]
[419852421,1775419843741,-150.0,0.00014611,2]
[419852422,1775419843750,-150.0,0.00014615,2]
[419852423,1775419843760,-150.0,0.00014615,2]
[419852424,1775419843769,-150.0,0.00014618,2]
[419852425,1775419843778,-500.0,0.0001462,2]
[419852426,1775419843788,-150.0,0.00014621,2]
[419852427,1775419843799,-150.0,0.00014624,2]
[419852428,1775419843808,-150.0,0.00014625,2]
[419852429,1775419843817,-150.0,0.00014626,2]
[419852430,1775419843826,-150.0,0.00014639,2]
[419852431,1775419843836,-150.0,0.00014642,2]
[419852432,1775419843844,-160.0,0.00014644,2]
[419852433,1775419843854,-150.0,0.00014645,2]
[419852434,1775419843863,-150.0,0.00014646,2]
[419852435,1775419843873,-150.0,0.00014648,2]
[419852436,1775419843883,-180.7,0.00014649,2]
[419852437,1775419843893,-150.0,0.00014656,2]
[419852438,1775419843902,-150.0,0.00014663,2]
[419852439,1775419843911,-708.3816593,0.00014663,4]
[419852440,1775419843922,-150.0,0.00014664,2]
[419852441,1775419843932,-150.0,0.00014667,2]
[419852442,1775419843942,-150.0,0.0001467,2]
[419852443,1775419843952,-150.0,0.00014672,2]
[419852444,1775419843962,-150.0,0.00014676,2]
[419852445,1775419843971,-150.0,0.00014677,2]
[419852446,1775419843980,-150.0,0.00014682,2]
[419852447,1775419843989,-150.0,0.00014687,2]
[419852448,1775419843999,-150.0,0.00014688,2]
[419852449,1775419844008,-150.0,0.00014691,2]
[419852450,1775419844018,-150.0,0.00014693,2]
[419852451,1775419844028,-195.76,0.00014696,2]
[419852452,1775419844037,-150.0,0.000147,2]
[419852453,1775419844046,-150.0,0.00014701,2]
[419852454,1775419844055,-150.0,0.00014702,2]
[419852455,1775419844064,-150.0,0.00014708,2]
[419852456,1775419844074,-150.0,0.0001471,2]
[419852457,1775419844083,-150.0,0.00014715,2]
[419852458,1775419844093,-150.0,0.0001472,2]
[419852459,1775419844103,-150.0,0.0001472,2]
[419852460,1775419844112,-150.0,0.00014731,2]
[419852461,1775419844121,-150.0,0.00014732,2]
[419852462,1775419844130,-150.0,0.00014734,2]
[419852463,1775419844139,-150.0,0.00014738,2]
[419852464,1775419844148,-150.0,0.00014738,2]
[419852465,1775419844157,-150.0,0.00014739,2]
[419852466,1775419844167,-150.0,0.00014752,2]
[419852467,1775419844177,-150.0,0.00014758,2]
[419852468,1775419844187,-150.0,0.00014758,2]
[419852469,1775419844196,-150.0,0.00014761,2]
[419852470,1775419844205,-186.98,0.00014762,2]
[419852471,1775419844214,-150.0,0.00014762,2]
[419852472,1775419844223,-150.0,0.00014764,2]
[419852473,1775419844233,-150.0,0.00014769,2]
[419852474,1775419844243,-150.0,0.00014776,2]
[419852475,1775419844253,-150.0,0.00014782,2]
[419852476,1775419844262,-150.0,0.00014783,2]
[419852477,1775419844272,-150.0,0.00014784,2]
[419852478,1775419844281,-150.0,0.00014786,2]
[419852479,1775419844291,-150.0,0.00014792,2]
[419852480,1775419844299,-553.41835149,0.00014795,2]
[419852481,1775419844309,-150.0,0.00014795,2]
[419852482,1775419844319,-500.0,0.00014798,2]
[419852483,1775419844328,-999.83756672,0.00014798,2]
[419852484,1775419844337,-26594.05472143,0.00014798,2]
[419852485,1775419844347,-500.0,0.000148,2]
[419852486,1775419844356,-500.0,0.000148,2]
[419852487,1775419844366,-150.0,0.000148,2]
[419852488,1775419844376,-150.0,0.000148,2]
[419852489,1775419844387,-150.0,0.000148,2]
[419852490,1775419844398,-180.7,0.00014801,2]
[419852491,1775419844410,-150.0,0.00014806,2]
[419852492,1775419844420,-150.0,0.00014806,2]
[419852493,1775419844430,-150.0,0.00014814,2]
[419852494,1775419844439,-150.0,0.00014816,2]
[419852495,1775419844448,-150.0,0.00014823,2]
[419852496,1775419844463,-150.0,0.00014828,2]
[419852497,1775419844473,-150.0,0.0001483,2]
[419852498,1775419844482,-150.0,0.00014831,2]
[419852499,1775419844491,-500.0,0.00014831,2]
[419852500,1775419844501,-846.58,0.00014831,2]
[419852501,1775419844510,-762.11,0.00014831,2]
[419852502,1775419844520,-500.0,0.00014831,2]
[419852503,1775419844529,-150.0,0.00014833,2]
[419852504,1775419844538,-150.0,0.00014836,2]
[419852505,1775419844548,-150.0,0.00014841,2]
[419852506,1775419844557,-150.0,0.00014848,2]
[419852507,1775419844566,-150.0,0.00014851,2]
[419852508,1775419844576,-150.0,0.00014852,2]
[419852509,1775419844585,-150.0,0.00014853,2]
[419852510,1775419844595,-150.0,0.00014854,2]
[419852511,1775419844604,-150.0,0.00014862,2]
[419852512,1775419844614,-150.0,0.00014871,2]
[419852513,1775419844623,-150.0,0.00014873,2]
[419852514,1775419844633,-150.0,0.00014878,2]
[419852515,1775419844642,-150.0,0.0001488,2]
[419852516,1775419844651,-150.0,0.00014883,2]
[419852517,1775419844660,-433.0,0.00014886,2]
[419852518,1775419844670,-150.0,0.00014889,2]